fUSD/lending_fUSD_20240629
["ID","MTS","AMOUNT","RATE_DAILY","PERIOD"]
[330627253,1719648644808,-580.42,0.00018554,2]
[330627254,1719648644818,-1212.81128,0.0001879,2]
[330627255,1719648644827,-177.2,0.00018821,2]
[330627256,1719648644837,-155.06,0.000189,2]
[330627257,1719648644847,-155.06,0.000189,2]
[330627258,1719648644856,-155.06,0.000189,2]
[330627259,1719648644865,-335.178834,0.00018904,2]
[330627260,1719648644875,-1000.0,0.00019,3]
[330627261,1719648644883,-1002.0,0.00019,3]
[330627262,1719648644893,-155.34957523,0.00019,2]
[330627263,1719648644903,-155.1650936,0.00019,2]
[330627264,1719648644912,-419.6921504,0.00019,2]
[330627265,1719648644922,-419.6921504,0.00019,2]
[330627266,1719648644932,-419.6921504,0.00019,2]
[330627267,1719648644941,-300.0,0.00019,2]
[330627268,1719648644950,-6996.78921511,0.00019091,2]
[330627269,1719648644959,-525.285719,0.00019177,2]
[330627270,1719648644968,-364.59996575,0.00019178,2]
[330627271,1719648644978,-197.91566548,0.00019178,2]
[330627272,1719648644989,-500.0,0.00019178,2]
[330627273,1719648644999,-379.79,0.00019178,2]
[330627274,1719648645008,-500.0,0.00019178,2]
[330627275,1719648645018,-500.0,0.00019178,2]
[330627276,1719648645027,-512.36404598,0.00019178,2]
[330627277,1719648645037,-500.0,0.00019178,2]
[330627278,1719648645046,-500.0,0.00019178,2]
[330627279,1719648645055,-271.74998696,0.00019178,2]
[330627280,1719648645065,-606.12502041,0.00019178,2]
[330627281,1719648645074,-500.0,0.00019178,2]
[330627282,1719648645084,-500.0,0.00019178,2]
[330627283,1719648645093,-430.0,0.00019178,2]
[330627284,1719648645103,-200.0,0.00019178,2]
[330627285,1719648645112,-500.0,0.00019178,2]
[330627286,1719648645122,-500.0,0.00019178,2]
[330627287,1719648645131,-500.0,0.00019178,2]
[330627288,1719648645143,-500.0,0.00019178,2]
[330627289,1719648645155,-500.0,0.00019178,2]
[330627290,1719648645164,-500.0,0.00019178,2]
[330627291,1719648645173,-500.0,0.00019178,2]
[330627292,1719648645182,-500.0,0.00019178,2]
[330627293,1719648645192,-500.0,0.00019178,2]
[330627295,1719648645201,-500.0,0.00019178,2]
[330627296,1719648645211,-500.0,0.00019178,2]
[330627297,1719648645220,-250.0,0.00019178,2]
[330627298,1719648645229,-500.0,0.00019178,2]
[330627299,1719648645239,-500.0,0.00019178,2]
[330627300,1719648645249,-500.0,0.00019178,2]
[330627301,1719648645258,-500.0,0.00019178,2]
[330627302,1719648645267,-500.0,0.00019178,2]
[330627303,1719648645277,-500.0,0.00019178,2]
[330627304,1719648645286,-500.0,0.00019178,2]
[330627305,1719648645295,-500.0,0.00019178,2]
[330627306,1719648645305,-500.0,0.00019178,2]
[330627307,1719648645314,-500.0,0.00019178,2]
[330627308,1719648645324,-333.81411418,0.00019178,2]
[330627309,1719648645333,-500.0,0.00019178,2]
[330627310,1719648645343,-500.0,0.00019178,2]
[330627311,1719648645352,-500.0,0.00019178,2]
[330627312,1719648645361,-500.0,0.00019178,2]
[330627314,1719648645371,-500.0,0.00019178,2]
[330627316,1719648645380,-500.0,0.00019178,2]
[330627317,1719648645390,-500.0,0.00019178,2]
[330627318,1719648645399,-500.0,0.00019178,2]
[330627319,1719648645411,-500.0,0.00019178,2]
[330627320,1719648645422,-500.0,0.00019178,2]
[330627322,1719648645834,-500.0,0.00019178,2]
[330627323,1719648645849,-500.0,0.00019178,2]
[330627324,1719648645859,-500.0,0.00019178,2]
[330627325,1719648645869,-500.0,0.00019178,2]
[330627326,1719648645879,-500.0,0.00019178,2]
[330627327,1719648645888,-500.0,0.00019178,2]
[330627328,1719648645898,-500.0,0.00019178,2]
[330627329,1719648645911,-500.0,0.00019178,2]
[330627330,1719648645920,-500.0,0.00019178,2]
[330627331,1719648645930,-500.0,0.00019178,2]
[330627332,1719648645939,-500.0,0.00019178,2]
[330627333,1719648645948,-500.0,0.00019178,2]
[330627334,1719648645957,-500.0,0.00019178,2]
[330627335,1719648645966,-500.0,0.00019178,2]
[330627336,1719648645976,-500.0,0.00019178,2]
[330627337,1719648645986,-500.0,0.00019178,2]
[330627338,1719648645995,-500.0,0.00019178,2]
[330627339,1719648646005,-500.0,0.00019178,2]
[330627340,1719648646015,-500.0,0.00019178,2]
[330627341,1719648646024,-500.0,0.00019178,2]
[330627342,1719648646034,-500.0,0.00019178,2]
[330627343,1719648646044,-301.56990765,0.00019178,2]
[330627344,1719648646053,-244.07579236,0.00019178,2]
[330627345,1719648646063,-500.0,0.00019178,2]
[330627346,1719648646073,-422.84295384,0.00019178,2]
[330627347,1719648646082,-500.0,0.00019178,2]
[330627348,1719648646092,-500.0,0.00019178,2]
[330627349,1719648646101,-500.0,0.00019178,2]
[330627350,1719648646112,-500.0,0.00019178,2]
[330627351,1719648646122,-418.4994435,0.00019178,2]
[330627352,1719648646131,-500.0,0.00019178,2]
[330627353,1719648646141,-500.0,0.00019178,2]
[330627354,1719648646151,-500.0,0.00019178,2]
[330627355,1719648646160,-500.0,0.00019178,2]
[330627356,1719648646170,-500.0,0.00019178,2]
[330627357,1719648646180,-500.0,0.00019178,2]
[330627358,1719648646190,-500.0,0.00019178,2]
[330627359,1719648646200,-500.0,0.00019178,2]
[330627360,1719648646211,-387.48338485,0.00019178,2]
[330627361,1719648646221,-151.0,0.00019178,2]
[330627362,1719648646231,-151.0,0.00019178,2]
[330627363,1719648646240,-151.0,0.00019178,2]
[330627364,1719648646250,-248.450561,0.00019178,2]
[330627365,1719648646259,-211.314126,0.00019178,2]
[330627366,1719648646269,-211.314126,0.00019178,2]
[330627367,1719648646280,-151.0,0.00019178,2]
[330627368,1719648646290,-500.0,0.00019178,3]
[330627369,1719648646299,-250.0,0.00019178,2]
[330627370,1719648646310,-5389.27,0.00019178,2]
[330627371,1719648646319,-1249.267999,0.00019178,2]
[330627372,1719648646329,-1249.267999,0.00019178,2]
[330627373,1719648646339,-150.0,0.00019178,2]
[330627374,1719648646349,-968.0,0.00019191,2]
[330627375,1719648646358,-151.0,0.00019192,2]
[330627376,1719648646367,-173.399251,0.00019192,2]
[330627377,1719648646377,-173.399251,0.00019192,2]
[330627378,1719648646388,-642.370448,0.00019192,2]
[330627379,1719648646398,-642.370448,0.00019192,2]
[330627380,1719648646408,-214.746095,0.00019192,2]
[330627381,1719648646417,-237.462612,0.00019192,2]
[330627382,1719648646426,-214.746095,0.00019192,2]
[330627383,1719648646435,-151.0,0.00019192,2]
[330627384,1719648646445,-484.417797,0.00019192,2]
[330627385,1719648646455,-484.417797,0.00019192,2]
[330627386,1719648646465,-151.0,0.00019192,2]
[330627387,1719648646475,-151.0,0.00019192,2]
[330627388,1719648646485,-6763.820626,0.00019192,2]
[330627389,1719648646494,-6763.820626,0.00019192,2]
[330627390,1719648646504,-151.0,0.00019192,2]
[330627391,1719648646513,-895.902828,0.00019192,2]
[330627392,1719648646523,-895.902828,0.00019192,2]
[330627393,1719648646532,-500.0,0.00019315,3]
[330627394,1719648646542,-2809.83215072,0.00019397,2]
[330627395,1719648646551,-323.57264572,0.00019399,2]
[330627396,1719648646561,-177.2,0.00019416,2]
[330627397,1719648646571,-500.0,0.00019452,3]
[330627398,1719648646580,-226.0,0.0001954,2]
[330627399,1719648646589,-273.0,0.0001954,2]
[330627400,1719648646598,-500.0,0.00019589,3]
[330627401,1719648646608,-2000.0,0.000196,7]
[330627402,1719648646618,-151.0,0.000196,2]
[330627403,1719648646627,-628.91404,0.000196,2]
[330627404,1719648646636,-251.012184,0.000196,2]
[330627405,1719648646646,-628.91404,0.000196,2]
[330627406,1719648646656,-186.6938,0.000196,2]
[330627407,1719648646666,-150.0,0.00019683,2]
[330627408,1719648646675,-4863.51714026,0.000197,2]
[330627409,1719648646691,-216.84108,0.000197,2]
[330627410,1719648646700,-216.84108,0.000197,2]
[330627411,1719648646710,-175.03548,0.000197,2]
[330627412,1719648646720,-151.0,0.000197,2]
[330627413,1719648646730,-862.075903,0.000197,2]
[330627414,1719648646739,-862.075903,0.000197,2]
[330627415,1719648646749,-151.0,0.000197,2]
[330627416,1719648646761,-151.0,0.000197,2]
[330627417,1719648646772,-1249.267999,0.000197,2]
[330627418,1719648646782,-1249.267999,0.000197,2]
[330627419,1719648646792,-151.0,0.000197,2]
[330627420,1719648646805,-2500.0,0.000197,7]
[330627421,1719648646825,-151.0,0.000197,2]
[330627422,1719648646841,-151.0,0.000197,2]
[330627423,1719648646850,-500.0,0.00019726,3]
[330627424,1719648646860,-335.178834,0.00019726,2]
[330627425,1719648646870,-212.57768713,0.00019731,2]
[330627426,1719648646879,-6996.78921511,0.0001979,2]
[330627427,1719648646889,-197.00508,0.000198,2]
[330627428,1719648646898,-197.00508,0.000198,2]
[330627429,1719648646910,-724.208422,0.000198,2]
[330627430,1719648646919,-724.208422,0.000198,2]
[330627431,1719648646929,-289.384445,0.000198,2]
[330627432,1719648646938,-151.0,0.000198,2]
[330627433,1719648646948,-289.384445,0.000198,2]
[330627434,1719648646960,-151.0,0.000198,2]
[330627435,1719648646970,-230.208549,0.000198,2]
[330627436,1719648646980,-151.0,0.000198,2]
[330627437,1719648646990,-230.208549,0.000198,2]
[330627438,1719648647000,-327.046558,0.000198,2]
[330627439,1719648647009,-327.046558,0.000198,2]
[330627440,1719648647019,-500.0,0.000198,7]
[330627441,1719648647029,-167.01,0.00019849,2]
[330627442,1719648647039,-151.0,0.00019863,2]
[330627443,1719648647048,-361.590018,0.00019863,2]
[330627444,1719648647058,-361.590018,0.00019863,2]
[330627445,1719648647067,-151.0,0.00019863,2]
[330627446,1719648647077,-151.0,0.00019863,2]
[330627447,1719648647086,-500.0,0.00019863,3]
[330627448,1719648647097,-301.62430051,0.0001988,2]
[330627449,1719648647108,-1375.08646582,0.0001988,2]
[330627450,1719648647118,-618.12356907,0.000199,2]
[330627451,1719648647128,-20901.7401,0.000199,2]
[330627452,1719648647137,-151.0,0.000199,2]
[330627453,1719648647147,-151.0,0.000199,2]
[330627454,1719648647157,-151.0,0.000199,2]
[330627455,1719648647169,-151.0,0.000199,2]
[330627456,1719648647179,-151.0,0.000199,2]
[330627457,1719648647191,-205.198648,0.000199,2]
[330627458,1719648647202,-151.0,0.000199,2]
[330627459,1719648647211,-151.0,0.000199,2]
[330627460,1719648647221,-500.0,0.000199,7]
[330627461,1719648647231,-200.0,0.0001997,7]
[330627462,1719648647242,-200.0,0.0001997,7]
[330627463,1719648647252,-322.09176541,0.0001997,7]
[330627464,1719648647263,-277.90823459,0.0001997,7]
[330627465,1719648647275,-200.0,0.0001997,7]
[330627466,1719648647285,-200.0,0.0001997,7]
[330627467,1719648647295,-200.0,0.0001997,7]
[330627468,1719648647305,-200.0,0.0001997,7]
[330627469,1719648647316,-200.0,0.0001997,7]
[330627470,1719648647326,-200.0,0.0001997,7]
[330627471,1719648647336,-200.0,0.0001997,7]
[330627472,1719648647345,-200.0,0.0001997,7]
[330627473,1719648647355,-200.0,0.0001997,7]
[330627474,1719648647365,-200.0,0.0001997,7]
[330627475,1719648647376,-200.0,0.0001997,7]
[330627476,1719648647386,-200.0,0.0001997,7]
[330627477,1719648647395,-200.0,0.0001997,7]
[330627478,1719648647405,-200.0,0.0001997,7]
[330627479,1719648647416,-155.06,0.0001997,2]
[330627480,1719648647425,-498702.03950631,0.0001998,2]
[330627481,1719648648220,-684.85547295,0.0001998,2]
[330627482,1719648648232,-613.04528797,0.0001998,2]
[330627483,1719648648241,-151.0,0.0001998,2]
[330627484,1719648648251,-151.0,0.0001998,2]
[330627485,1719648648260,-151.0,0.0001998,2]
[330627486,1719648648270,-151.0,0.0001998,2]
[330627487,1719648648279,-151.0,0.0001998,2]
[330627488,1719648648288,-9.48925203,0.0001998,2]
[330627489,1719648648299,-141.51074797,0.0001998,2]
[330627490,1719648648309,-155.813053,0.0001998,2]
[330627491,1719648648319,-361.590018,0.0001998,2]
[330627492,1719648648327,-361.590018,0.0001998,2]
[330627493,1719648648337,-153.135384,0.0001998,2]
[330627494,1719648648346,-197.00508,0.0001998,2]
[330627495,1719648648356,-197.00508,0.0001998,2]
[330627496,1719648648365,-151.0,0.0001998,2]
[330627497,1719648648375,-151.0,0.0001998,2]
[330627498,1719648648384,-151.0,0.0001998,2]
[330627499,1719648648393,-211.314126,0.0001998,2]
[330627500,1719648648403,-211.314126,0.0001998,2]
[330627501,1719648648413,-724.208422,0.0001998,2]
[330627502,1719648648423,-209.99732562,0.0001998,2]
[330627503,1719648649491,-1635.263365,0.00013452,2]
[330627504,1719648649500,-2832.50664846,0.000149,2]
[330627519,1719648827693,5493.45171523,0.00011098,2]
[330627520,1719648853283,263.28511281,0.00011098,2]
[330627521,1719648855918,181.02431915,0.00011098,2]
[330627522,1719648861276,290.00024155,0.00011098,2]
[330627523,1719648986796,753.96713947,0.00011098,2]
[330627524,1719649065549,155.0,0.00011098,2]
[330627525,1719649109013,5685.85,0.00025,60]
[330627531,1719649271802,754.09006445,0.00011098,2]
[330627571,1719649536563,304.98751847,0.00011099,2]
[330627638,1719649831702,-300.0,0.00011198,2]
[330627639,1719649831712,-4836.10633996,0.00011199,2]
[330627640,1719649831726,-3053.65,0.00011199,2]
[330627641,1719649831737,-16864.49216451,0.00011199,2]
[330627642,1719649831746,-157.99,0.00011404,2]
[330627643,1719649831756,-150.0,0.00013897,2]
[330627644,1719649831768,-66007.72953472,0.00013898,2]
[330627645,1719649831780,-14648.13855098,0.00013898,2]
[330627646,1719649831804,-3300.0,0.00013898,2]
[330627647,1719649831815,-672.13202934,0.00013898,2]
[330627648,1719649831826,-715.99630607,0.00013898,2]
[330627649,1719649831873,-1062.45142934,0.00013898,2]
[330627650,1719649831884,-3932.12964903,0.00013898,2]
[330627651,1719649831895,-293.43812873,0.00013898,2]
[330627653,1719649831976,-1882.84322713,0.00013898,2]
[330627689,1719649837700,-580.4,0.00013898,2]
[330627690,1719649837712,-600.0,0.00013898,2]
[330627691,1719649837787,-3210.79791008,0.00013898,2]
[330627692,1719649837813,-1592.53420064,0.00013898,2]
[330627693,1719649837824,-3813.73549989,0.00013898,2]
[330627694,1719649837906,-13695.40306877,0.00013898,2]
[330627695,1719649837916,-199.2846,0.00013899,2]
[330627696,1719649837925,-26557.6576,0.00013899,2]
[330627697,1719649837935,-7500.0,0.00013899,2]
[330627698,1719649837945,-2155.26207248,0.00013899,2]
[330627699,1719649837955,-167.69540199,0.00013899,2]
[330627700,1719649837965,-2988.04559274,0.0001399,2]
[330627701,1719649837975,-547792.63267388,0.00013999,2]
[330627702,1719649837985,-693182.42420928,0.00013999,2]
[330627703,1719649837996,-161.63425311,0.000144,2]
[330627704,1719649838005,-183.19445525,0.000145,2]
[330627705,1719649838015,-663.16,0.00014568,2]
[330627706,1719649838029,-494.23,0.00014733,2]
[330627707,1719649838039,-5000.0,0.00015,2]
[330627708,1719649838048,-150.0,0.00015,15]
[330627709,1719649838058,-2155.26207246,0.0001503,2]
[330627710,1719649838068,-169.06,0.00015166,2]
[330627711,1719649838082,-210.0,0.00015241,2]
[330627712,1719649838091,-805.42887238,0.00015335,2]
[330627713,1719649838101,-2343.57,0.00015351,2]
[330627714,1719649838111,-167.76,0.00015465,2]
[330627715,1719649838121,-250.0,0.00015495,2]
[330627716,1719649838131,-215.71509715,0.00015535,2]
[330627717,1719649838141,-250.0,0.00015579,2]
[330627718,1719649838152,-495.50220874,0.00015579,2]
[330627719,1719649838162,-164.15,0.00015651,2]
[330627720,1719649838173,-3077.0,0.000158,2]
[330627721,1719649838183,-227.02046916,0.00015832,2]
[330627722,1719649838192,-7476.47919069,0.0001597,2]
[330627723,1719649838202,-5883.64,0.00016116,2]
[330627724,1719649838211,-2155.26207246,0.00016161,2]
[330627725,1719649838221,-771.0,0.00016226,2]
[330627726,1719649838231,-663.16,0.00016389,2]
[330627727,1719649838240,-186.06,0.00016712,2]
[330627728,1719649838250,-293.0,0.00016716,2]
[330627729,1719649838261,-1000.0,0.00016828,2]
[330627731,1719649838271,-2000.0,0.00016986,3]
[330627732,1719649838281,-494.23,0.00016997,2]
[330627734,1719649838291,-183.19445523,0.00017085,2]
[330627735,1719649838301,-170.11,0.00017148,2]
[330627736,1719649838310,-2155.26207246,0.00017292,2]
[330627737,1719649838320,-94325.6079,0.0001796,2]
[330627738,1719649838330,-22150.74655615,0.0001806,2]
[330627739,1719649838340,-22150.74655615,0.0001806,2]
[330627740,1719649838349,-663.16,0.0001821,2]
[330627741,1719649838359,-342.0,0.00018333,2]
[330627742,1719649838368,-2155.26207246,0.00018424,2]
[330627743,1719649838378,-155.07,0.000189,2]
[330627744,1719649838387,-155.07,0.000189,2]
[330627745,1719649838397,-1000.0,0.00018932,2]
[330627746,1719649838407,-219.65023991,0.00019,2]
[330627747,1719649838416,-500.0,0.00019178,2]
[330627748,1719649838426,-525.54983305,0.00019178,2]
[330627749,1719649838436,-500.0,0.00019178,2]
[330627750,1719649838446,-343.52996042,0.00019178,2]
[330627751,1719649838456,-500.0,0.00019178,2]
[330627752,1719649838465,-500.0,0.00019178,2]
[330627753,1719649838475,-566.24501546,0.00019178,2]
[330627754,1719649838484,-500.0,0.00019178,2]
[330627755,1719649838494,-250.0,0.00019178,2]
[330627756,1719649838503,-500.0,0.00019178,2]
[330627757,1719649838513,-500.0,0.00019178,2]
[330627758,1719649838522,-500.0,0.00019178,2]
[330627759,1719649838532,-226.38141142,0.00019178,2]
[330627760,1719649838541,-581.92,0.00019178,3]
[330627761,1719649838551,-150.0,0.00019178,2]
[330627762,1719649838561,-250.0,0.00019178,2]
[330627763,1719649838570,-494.23,0.00019261,2]
[330627764,1719649838579,-581.92,0.00019315,3]
[330627765,1719649838588,-151.0,0.00019416,2]
[330627766,1719649838600,-581.92,0.00019452,3]
[330627767,1719649838610,-1267.96578756,0.0001947,2]
[330627768,1719649838619,-2155.26207246,0.00019555,2]
[330627769,1719649838628,-995.57662581,0.0001958,2]
[330627770,1719649838638,-581.92,0.00019589,3]
[330627771,1719649838648,-1000.0,0.000196,2]
[330627772,1719649838659,-183.19445523,0.00019671,2]
[330627773,1719649838668,-150.0,0.00019683,2]
[330627774,1719649838678,-581.92,0.00019726,3]
[330627775,1719649838687,-500.0,0.0001978,2]
[330627776,1719649838696,-356.0,0.000198,2]
[330627777,1719649838706,-1000.0,0.000198,2]
[330627778,1719649838716,-225.0,0.000198,2]
[330627779,1719649838725,-581.92,0.00019863,3]
[330627780,1719649838734,-211233.5769,0.0001988,2]
[330627781,1719649838744,-151.0,0.0001988,2]
[330627782,1719649838753,-151.0,0.0001988,2]
[330627783,1719649838764,-151.0,0.0001988,2]
[330627784,1719649838773,-151.0,0.0001988,2]
[330627785,1719649838783,-151.0,0.0001988,2]
[330627786,1719649838792,-151.0,0.0001988,2]
[330627787,1719649838801,-151.0,0.0001988,2]
[330627788,1719649838811,-540.20645,0.0001988,2]
[330627789,1719649838820,-540.20645,0.0001988,2]
[330627790,1719649838829,-410.256009,0.0001988,2]
[330627791,1719649838838,-239.057556,0.0001988,2]
[330627792,1719649838847,-151.0,0.0001988,2]
[330627793,1719649838856,-410.256009,0.0001988,2]
[330627794,1719649838865,-239.057556,0.0001988,2]
[330627795,1719649838875,-151.0,0.0001988,2]
[330627796,1719649838884,-151.0,0.0001988,2]
[330627797,1719649838894,-151.0,0.0001988,2]
[330627798,1719649838905,-151.0,0.0001988,2]
[330627799,1719649838914,-173.472864,0.0001988,2]
[330627800,1719649838924,-173.472864,0.0001988,2]
[330627801,1719649838933,-151.0,0.0001988,2]
[330627802,1719649838942,-151.0,0.0001988,2]
[330627803,1719649838952,-1038.903268,0.0001988,2]
[330627804,1719649838961,-151.0,0.0001988,2]
[330627805,1719649838971,-1038.903268,0.0001988,2]
[330627806,1719649838980,-151.0,0.0001988,2]
[330627807,1719649838990,-151.0,0.0001988,2]
[330627808,1719649839000,-151.0,0.0001988,2]
[330627809,1719649839010,-231.190076,0.0001988,2]
[330627810,1719649839020,-151.0,0.0001988,2]
[330627811,1719649839031,-231.190076,0.0001988,2]
[330627812,1719649839041,-151.0,0.0001988,2]
[330627813,1719649839051,-999.414399,0.0001988,2]
[330627814,1719649839061,-999.414399,0.0001988,2]
[330627815,1719649839074,-151.0,0.0001988,2]
[330627816,1719649839086,-151.0,0.0001988,2]
[330627817,1719649839096,-332.579517,0.0001988,2]
[330627818,1719649839107,-332.579517,0.0001988,2]
[330627819,1719649839118,-194.24917,0.0001988,2]
[330627820,1719649839128,-194.24917,0.0001988,2]
[330627821,1719649839138,-151.0,0.0001988,2]
[330627822,1719649839149,-513.896359,0.0001988,2]
[330627823,1719649839159,-513.896359,0.0001988,2]
[330627824,1719649839170,-151.0,0.0001988,2]
[330627825,1719649839179,-322.212083,0.0001988,2]
[330627826,1719649839189,-322.212083,0.0001988,2]
[330627827,1719649839199,-151.0,0.0001988,2]
[330627828,1719649839210,-151.0,0.0001988,2]
[330627829,1719649839220,-576.536448,0.0001988,2]
[330627830,1719649839231,-576.536448,0.0001988,2]
[330627831,1719649839240,-503.131232,0.0001988,2]
[330627832,1719649839251,-503.131232,0.0001988,2]
[330627833,1719649839263,-151.0,0.0001988,2]
[330627834,1719649839273,-151.0,0.0001988,2]
[330627835,1719649839283,-151.0,0.0001988,2]
[330627836,1719649839292,-19446.7643,0.000199,2]
[330627837,1719649839302,-1158.64795333,0.000199,2]
[330627838,1719649839312,-28602.58917629,0.000199,2]
[330627839,1719649839323,-150.0,0.00019923,2]
[330627840,1719649839332,-3417.5248732,0.00019976,2]
[330627841,1719649839342,-42837.501092,0.00019976,2]
[330627842,1719649839358,-6401.275098,0.00019976,2]
[330627843,1719649839368,-170.11,0.00019978,2]
[330627844,1719649839379,-1014.43018878,0.00019979,2]
[330627845,1719649839389,-200.0,0.0001999,7]
[330627846,1719649839400,-200.0,0.0001999,7]
[330627847,1719649839410,-200.0,0.0001999,7]
[330627848,1719649839421,-200.0,0.0001999,7]
[330627849,1719649839431,-200.0,0.0001999,7]
[330627850,1719649839441,-200.0,0.0001999,7]
[330627851,1719649839451,-155.07,0.0001999,2]
[330627852,1719649839461,-200.0,0.0001999,7]
[330627853,1719649839472,-200.0,0.0001999,7]
[330627855,1719649839482,-200.0,0.0001999,7]
[330627857,1719649839492,-241.22483998,0.0001999,2]
[330627859,1719649839503,-155.07,0.0001999,2]
[330627861,1719649839513,-155.07,0.0001999,2]
[330627863,1719649839523,-155.07,0.0001999,2]
[330627865,1719649839534,-155.07,0.0001999,2]
[330627868,1719649839544,-155.07,0.0001999,2]
[330627870,1719649839555,-155.07,0.0001999,2]
[330627872,1719649839565,-155.07,0.0001999,2]
[330627875,1719649839576,-155.07,0.0001999,2]
[330627877,1719649839586,-540294.29265276,0.0002,7]
[330627879,1719649839596,-155.0,0.0002,2]
[330627881,1719649839606,-1274.88625925,0.0002,2]
[330627883,1719649839616,-12749.19467156,0.0002,3]
[330627885,1719649839626,-286150.16807155,0.0002,2]
[330627886,1719649839660,-2603.10643675,0.0002,2]
[330627890,1719649840698,-2606.87267678,0.0002,2]
[330627891,1719649840763,-916.72431054,0.000199,2]
[330627892,1719649840773,-90632.91374217,0.0002,2]
[330627897,1719649842874,-2858.90779442,0.000143,2]
[330627898,1719649842884,-274927.59561345,0.0002,2]
[330627901,1719649845792,-6388.41552287,0.0002,2]
[330627902,1719649846045,-2594708.52412762,0.0002,2]
[330627903,1719649846115,-609.0156,0.0002,2]
[330627904,1719649846128,-2000.0,0.0002,2]
[330627905,1719649846140,-792.73224283,0.0002,2]
[330627931,1719650047795,3106.94505996,0.00011098,2]
[330627933,1719650054484,2706.62282126,0.00011,2]
[330627934,1719650058278,4457.9797839,0.00011098,2]
[330627935,1719650075090,5596.79021776,0.00011098,2]
[330627937,1719650118801,1133.92751376,0.00011098,2]
[330627942,1719650176041,475.04909202,0.00011098,2]
[330627944,1719650224262,545.37650781,0.00011098,2]
[330627945,1719650227441,227.02046916,0.00011098,2]
[330627946,1719650253264,270.76359065,0.00011098,2]
[330627948,1719650267212,232.57592211,0.00011098,2]
[330627949,1719650272602,445.52849405,0.00011098,2]
[330627950,1719650274404,217.87188322,0.00011098,2]
[330627951,1719650280489,346.07679139,0.00011098,2]
[330627953,1719650403583,153.7131545,0.00011098,2]
[330627954,1719650413125,181.02431915,0.00011098,2]
[330627956,1719650624975,227.02046916,0.00011098,2]
[330627959,1719650651040,152.49375924,0.00011149,2]
[330627961,1719650691962,1000.0,0.00023288,90]
[330627962,1719650692415,1000.0,0.00023288,90]
[330627963,1719650692718,1000.0,0.00023288,90]
[330627964,1719650693234,1000.0,0.00023288,90]
[330627965,1719650693594,1000.0,0.00023288,90]
[330627973,1719650932030,184.28825685,0.00011149,2]
[330627979,1719651031837,-300.0,0.00011198,2]
[330627980,1719651031846,-6428.94505261,0.00011199,2]
[330627981,1719651031857,-668.95952215,0.00011199,2]
[330627983,1719651031868,-1325.8073129,0.00011199,2]
[330627985,1719651031879,-919.32000046,0.00011199,2]
[330627987,1719651031891,-630.85,0.00011199,2]
[330627988,1719651031902,-404.0000001,0.00011199,2]
[330627989,1719651031913,-159.12094714,0.00011199,2]
[330627990,1719651031922,-167.21905286,0.00011249,2]
[330627992,1719651031933,-409.73094714,0.00011249,2]
[330627993,1719651031942,-10.26905286,0.00012303,2]
[330627994,1719651031957,-409.73094714,0.00012303,2]
[330627995,1719651031966,-250.0,0.00012667,2]
[330627996,1719651031975,-1610.34788142,0.00012687,2]
[330627997,1719651031985,-326.69211858,0.00012687,2]
[330627998,1719651031994,-8783.2933935,0.0001279,2]